fUSD/lending_fUSD_20260611
["ID","MTS","AMOUNT","RATE_DAILY","PERIOD"]
[424809027,1781177444000,-617.58,0.00013698,2]
[424809030,1781177444000,-993.33,0.00013698,2]
[424809028,1781177444000,-617.58,0.00013698,2]
[424809029,1781177444000,-993.33,0.00013698,2]
[424809033,1781177444000,-993.33,0.00013698,2]
[424809034,1781177444000,-993.33,0.00013698,2]
[424809032,1781177444000,-993.33,0.00013698,2]
[424809037,1781177444000,-993.33,0.00013698,2]
[424809031,1781177444000,-993.33,0.00013698,2]
[424809041,1781177444000,-993.33,0.00013698,2]
[424809039,1781177444000,-993.33,0.00013698,2]
[424809040,1781177444000,-993.33,0.00013698,2]
[424809036,1781177444000,-993.33,0.00013698,2]
[424809038,1781177444000,-993.33,0.00013698,2]
[424809035,1781177444000,-993.33,0.00013698,2]
[424809044,1781177444000,-993.33,0.00013698,2]
[424809042,1781177444000,-993.33,0.00013698,2]
[424809046,1781177444000,-993.33,0.00013698,2]
[424809064,1781177444000,-660.37,0.00013698,2]
[424809118,1781177444000,-500.0,0.00013698,2]
[424809071,1781177444000,-660.37,0.00013698,2]
[424809100,1781177444000,-500.0,0.00013698,2]
[424809101,1781177444000,-500.0,0.00013698,2]
[424809103,1781177444000,-500.0,0.00013698,2]
[424809096,1781177444000,-500.0,0.00013698,2]
[424809105,1781177444000,-500.0,0.00013698,2]
[424809106,1781177444000,-500.0,0.00013698,2]
[424809107,1781177444000,-500.0,0.00013698,2]
[424809108,1781177444000,-500.0,0.00013698,2]
[424809115,1781177444000,-500.0,0.00013698,2]
[424809112,1781177444000,-500.0,0.00013698,2]
[424809109,1781177444000,-500.0,0.00013698,2]
[424809113,1781177444000,-500.0,0.00013698,2]
[424809114,1781177444000,-557.54165227,0.00013698,2]
[424809110,1781177444000,-500.0,0.00013698,2]
[424809111,1781177444000,-500.0,0.00013698,2]
[424809122,1781177444000,-500.0,0.00013698,2]
[424809117,1781177444000,-500.0,0.00013698,2]
[424809120,1781177444000,-500.0,0.00013698,2]
[424809121,1781177444000,-500.0,0.00013698,2]
[424809123,1781177444000,-500.0,0.00013698,2]
[424809119,1781177444000,-500.0,0.00013698,2]
[424809124,1781177444000,-500.0,0.00013698,2]
[424809068,1781177444000,-660.37,0.00013698,2]
[424809102,1781177444000,-500.0,0.00013698,2]
[424809097,1781177444000,-500.0,0.00013698,2]
[424809116,1781177444000,-500.0,0.00013698,2]
[424809099,1781177444000,-500.0,0.00013698,2]
[424809074,1781177444000,-660.37,0.00013698,2]
[424809077,1781177444000,-660.37338711,0.00013698,2]
[424809076,1781177444000,-502.88764057,0.00013698,2]
[424809082,1781177444000,-415.12475003,0.00013698,2]
[424809081,1781177444000,-500.0,0.00013698,2]
[424809075,1781177444000,-660.37,0.00013698,2]
[424809098,1781177444000,-500.0,0.00013698,2]
[424809079,1781177444000,-500.0,0.00013698,2]
[424809080,1781177444000,-500.0,0.00013698,2]
[424809083,1781177444000,-500.0,0.00013698,2]
[424809085,1781177444000,-500.0,0.00013698,2]
[424809078,1781177444000,-500.0,0.00013698,2]
[424809086,1781177444000,-500.0,0.00013698,2]
[424809084,1781177444000,-500.0,0.00013698,2]
[424809104,1781177444000,-500.0,0.00013698,2]
[424809093,1781177444000,-500.0,0.00013698,2]
[424809094,1781177444000,-500.0,0.00013698,2]
[424809087,1781177444000,-500.0,0.00013698,2]
[424809095,1781177444000,-500.0,0.00013698,2]
[424809089,1781177444000,-500.0,0.00013698,2]
[424809092,1781177444000,-500.0,0.00013698,2]
[424809091,1781177444000,-500.0,0.00013698,2]
[424809090,1781177444000,-500.0,0.00013698,2]
[424809088,1781177444000,-500.0,0.00013698,2]
[424809149,1781177445000,-500.0,0.00013698,2]
[424809152,1781177445000,-500.0,0.00013698,2]
[424809150,1781177445000,-500.0,0.00013698,2]
[424809153,1781177445000,-500.0,0.00013698,2]
[424809157,1781177445000,-500.0,0.00013698,2]
[424809158,1781177445000,-500.0,0.00013698,2]
[424809164,1781177445000,-500.0,0.00013698,2]
[424809165,1781177445000,-500.0,0.00013698,2]
[424809160,1781177445000,-500.0,0.00013698,2]
[424809156,1781177445000,-500.0,0.00013698,2]
[424809174,1781177445000,-500.0,0.00013698,2]
[424809166,1781177445000,-500.0,0.00013698,2]
[424809159,1781177445000,-500.0,0.00013698,2]
[424809162,1781177445000,-500.0,0.00013698,2]
[424809163,1781177445000,-500.0,0.00013698,2]
[424809168,1781177445000,-500.0,0.00013698,2]
[424809178,1781177445000,-500.0,0.00013698,2]
[424809170,1781177445000,-500.0,0.00013698,2]
[424809167,1781177445000,-500.0,0.00013698,2]
[424809173,1781177445000,-500.0,0.00013698,2]
[424809169,1781177445000,-500.0,0.00013698,2]
[424809148,1781177445000,-500.0,0.00013698,2]
[424809161,1781177445000,-500.0,0.00013698,2]
[424809145,1781177445000,-500.0,0.00013698,2]
[424809140,1781177445000,-500.0,0.00013698,2]
[424809146,1781177445000,-500.0,0.00013698,2]
[424809176,1781177445000,-500.0,0.00013698,2]
[424809126,1781177445000,-500.0,0.00013698,2]
[424809125,1781177445000,-500.0,0.00013698,2]
[424809131,1781177445000,-500.0,0.00013698,2]
[424809133,1781177445000,-500.0,0.00013698,2]
[424809132,1781177445000,-500.0,0.00013698,2]
[424809127,1781177445000,-500.0,0.00013698,2]
[424809130,1781177445000,-500.0,0.00013698,2]
[424809129,1781177445000,-500.0,0.00013698,2]
[424809128,1781177445000,-500.0,0.00013698,2]
[424809147,1781177445000,-500.0,0.00013698,2]
[424809135,1781177445000,-500.0,0.00013698,2]
[424809134,1781177445000,-500.0,0.00013698,2]
[424809142,1781177445000,-500.0,0.00013698,2]
[424809139,1781177445000,-500.0,0.00013698,2]
[424809138,1781177445000,-500.0,0.00013698,2]
[424809137,1781177445000,-500.0,0.00013698,2]
[424809141,1781177445000,-500.0,0.00013698,2]
[424809144,1781177445000,-500.0,0.00013698,2]
[424809154,1781177445000,-500.0,0.00013698,2]
[424809143,1781177445000,-500.0,0.00013698,2]
[424809155,1781177445000,-500.0,0.00013698,2]
[424809136,1781177445000,-500.0,0.00013698,2]
[424809177,1781177445000,-500.0,0.00013698,2]
[424809179,1781177445000,-500.0,0.00013698,2]
[424809181,1781177445000,-500.0,0.00013698,2]
[424809210,1781177445000,-1227.00121381,0.00013699,2]
[424809204,1781177445000,-1227.00121381,0.00013699,2]
[424809205,1781177445000,-1227.00121381,0.00013699,2]
[424809208,1781177445000,-1227.00121381,0.00013699,2]
[424809209,1781177445000,-1227.00121381,0.00013699,2]
[424809211,1781177445000,-1227.00121381,0.00013699,2]
[424809214,1781177445000,-1227.00121381,0.00013699,2]
[424809213,1781177445000,-1227.00121381,0.00013699,2]
[424809215,1781177445000,-1227.00121381,0.00013699,2]
[424809216,1781177445000,-1227.00121381,0.00013699,2]
[424809217,1781177445000,-1227.00121381,0.00013699,2]
[424809218,1781177445000,-1227.00121381,0.00013699,2]
[424809221,1781177445000,-1227.00121381,0.00013699,2]
[424809223,1781177445000,-1227.00121381,0.00013699,2]
[424809220,1781177445000,-1227.00121381,0.00013699,2]
[424809219,1781177445000,-1227.00121381,0.00013699,2]
[424809222,1781177445000,-1227.00121381,0.00013699,2]
[424809224,1781177445000,-1227.00121381,0.00013699,2]
[424809226,1781177445000,-1227.00121381,0.00013699,2]
[424809229,1781177445000,-1227.00121381,0.00013699,2]
[424809228,1781177445000,-1227.00121381,0.00013699,2]
[424809227,1781177445000,-1227.00121381,0.00013699,2]
[424809225,1781177445000,-1227.00121381,0.00013699,2]
[424809203,1781177445000,-1227.00121381,0.00013699,2]
[424809206,1781177445000,-1227.00121381,0.00013699,2]
[424809175,1781177445000,-500.0,0.00013698,2]
[424809212,1781177445000,-1227.00121381,0.00013699,2]
[424809180,1781177445000,-500.0,0.00013698,2]
[424809183,1781177445000,-500.0,0.00013698,2]
[424809186,1781177445000,-500.0,0.00013698,2]
[424809184,1781177445000,-500.0,0.00013698,2]
[424809182,1781177445000,-500.0,0.00013698,2]
[424809187,1781177445000,-500.0,0.00013698,2]
[424809207,1781177445000,-1227.00121381,0.00013699,2]
[424809189,1781177445000,-500.0,0.00013698,2]
[424809188,1781177445000,-500.0,0.00013698,2]
[424809185,1781177445000,-500.0,0.00013698,2]
[424809190,1781177445000,-200.0,0.00013699,2]
[424809230,1781177445000,-1227.00121381,0.00013699,2]
[424809191,1781177445000,-222.15,0.00013699,2]
[424809192,1781177445000,-185.12,0.00013699,2]
[424809196,1781177445000,-7665.35,0.00013699,2]
[424809198,1781177445000,-22261.86,0.00013699,2]
[424809200,1781177445000,-1227.00121381,0.00013699,2]
[424809193,1781177445000,-2500.0,0.00013699,2]
[424809199,1781177445000,-203.75726942,0.00013699,2]
[424809194,1781177445000,-154.27,0.00013699,2]
[424809197,1781177445000,-150.0,0.00013699,2]
[424809202,1781177445000,-1227.00121381,0.00013699,2]
[424809201,1781177445000,-1227.00121381,0.00013699,2]
[424809195,1781177445000,-771.36,0.00013699,2]
[424809260,1781177446000,-1227.00121381,0.00013699,2]
[424809255,1781177446000,-1227.00121381,0.00013699,2]
[424809263,1781177446000,-1227.00121381,0.00013699,2]
[424809259,1781177446000,-1227.00121381,0.00013699,2]
[424809261,1781177446000,-1227.00121381,0.00013699,2]
[424809264,1781177446000,-1227.00121381,0.00013699,2]
[424809266,1781177446000,-1227.00121381,0.00013699,2]
[424809272,1781177446000,-1227.00121381,0.00013699,2]
[424809269,1781177446000,-1227.00121381,0.00013699,2]
[424809273,1781177446000,-1227.00121381,0.00013699,2]
[424809276,1781177446000,-1227.00121381,0.00013699,2]
[424809270,1781177446000,-1227.00121381,0.00013699,2]
[424809271,1781177446000,-1227.00121381,0.00013699,2]
[424809274,1781177446000,-1227.00121381,0.00013699,2]
[424809267,1781177446000,-1227.00121381,0.00013699,2]
[424809265,1781177446000,-1227.00121381,0.00013699,2]
[424809285,1781177446000,-1227.00121381,0.00013699,2]
[424809275,1781177446000,-1227.00121381,0.00013699,2]
[424809277,1781177446000,-1227.00121381,0.00013699,2]
[424809279,1781177446000,-1227.00121381,0.00013699,2]
[424809278,1781177446000,-1227.00121381,0.00013699,2]
[424809262,1781177446000,-1227.00121381,0.00013699,2]
[424809268,1781177446000,-1227.00121381,0.00013699,2]
[424809257,1781177446000,-1227.00121381,0.00013699,2]
[424809248,1781177446000,-1227.00121381,0.00013699,2]
[424809256,1781177446000,-1227.00121381,0.00013699,2]
[424809280,1781177446000,-1227.00121381,0.00013699,2]
[424809231,1781177446000,-1227.00121381,0.00013699,2]
[424809232,1781177446000,-1227.00121381,0.00013699,2]
[424809241,1781177446000,-1227.00121381,0.00013699,2]
[424809233,1781177446000,-1227.00121381,0.00013699,2]
[424809234,1781177446000,-1227.00121381,0.00013699,2]
[424809240,1781177446000,-1227.00121381,0.00013699,2]
[424809237,1781177446000,-1227.00121381,0.00013699,2]
[424809238,1781177446000,-1227.00121381,0.00013699,2]
[424809239,1781177446000,-1227.00121381,0.00013699,2]
[424809236,1781177446000,-1227.00121381,0.00013699,2]
[424809242,1781177446000,-1227.00121381,0.00013699,2]
[424809245,1781177446000,-1227.00121381,0.00013699,2]
[424809244,1781177446000,-1227.00121381,0.00013699,2]
[424809243,1781177446000,-1227.00121381,0.00013699,2]
[424809247,1781177446000,-1227.00121381,0.00013699,2]
[424809251,1781177446000,-1227.00121381,0.00013699,2]
[424809249,1781177446000,-1227.00121381,0.00013699,2]
[424809252,1781177446000,-1227.00121381,0.00013699,2]
[424809250,1781177446000,-1227.00121381,0.00013699,2]
[424809246,1781177446000,-1227.00121381,0.00013699,2]
[424809254,1781177446000,-1227.00121381,0.00013699,2]
[424809253,1781177446000,-1227.00121381,0.00013699,2]
[424809258,1781177446000,-1227.00121381,0.00013699,2]
[424809284,1781177446000,-1227.00121381,0.00013699,2]
[424809235,1781177446000,-1227.00121381,0.00013699,2]
[424809282,1781177446000,-1227.00121381,0.00013699,2]
[424809317,1781177446000,-299.60307495,0.00013825,2]
[424809313,1781177446000,-299.60307495,0.0001381,2]
[424809318,1781177446000,-150.0,0.00013825,2]
[424809315,1781177446000,-150.0,0.00013823,2]
[424809314,1781177446000,-150.0,0.00013814,2]
[424809320,1781177446000,-1500.0,0.00013834,2]
[424809328,1781177446000,-299.60307495,0.0001387,2]
[424809322,1781177446000,-299.60307495,0.0001384,2]
[424809319,1781177446000,-150.0,0.00013829,2]
[424809321,1781177446000,-648.32862605,0.00013839,2]
[424809316,1781177446000,-150.0,0.00013824,2]
[424809325,1781177446000,-299.60307495,0.00013855,2]
[424809326,1781177446000,-150.0,0.00013861,2]
[424809323,1781177446000,-150.0,0.00013851,2]
[424809324,1781177446000,-150.0,0.00013854,2]
[424809329,1781177446000,-150.0,0.00013876,2]
[424809330,1781177446000,-150.0,0.00013885,2]
[424809332,1781177446000,-150.0,0.00013885,2]
[424809335,1781177446000,-299.60307495,0.000139,2]
[424809333,1781177446000,-150.0,0.00013896,2]
[424809336,1781177446000,-150.0,0.00013902,2]
[424809331,1781177446000,-299.60307495,0.00013885,2]
[424809327,1781177446000,-150.0,0.00013862,2]
[424809312,1781177446000,-150.0,0.00013799,2]
[424809334,1781177446000,-150.0,0.00013897,2]
[424809311,1781177446000,-299.60307495,0.00013795,2]
[424809310,1781177446000,-150.0,0.00013795,2]
[424809286,1781177446000,-1227.00121381,0.00013699,2]
[424809289,1781177446000,-299.60307495,0.00013705,2]
[424809293,1781177446000,-150.0,0.00013727,2]
[424809287,1781177446000,-1227.00121376,0.00013699,2]
[424809290,1781177446000,-150.0,0.00013716,2]
[424809288,1781177446000,-720.38,0.000137,2]
[424809297,1781177446000,-299.60307495,0.00013735,2]
[424809291,1781177446000,-299.60307495,0.0001372,2]
[424809292,1781177446000,-150.0,0.00013722,2]
[424809294,1781177446000,-150.0,0.0001373,2]
[424809296,1781177446000,-500.0,0.00013735,2]
[424809283,1781177446000,-1227.00121381,0.00013699,2]
[424809298,1781177446000,-150.0,0.00013748,2]
[424809302,1781177446000,-150.0,0.00013761,2]
[424809300,1781177446000,-150.0,0.00013752,2]
[424809303,1781177446000,-3457.0,0.00013761,2]
[424809304,1781177446000,-299.60307495,0.00013765,2]
[424809301,1781177446000,-150.0,0.00013761,2]
[424809307,1781177446000,-150.0,0.00013788,2]
[424809308,1781177446000,-150.0,0.00013792,2]
[424809306,1781177446000,-299.60307495,0.0001378,2]
[424809305,1781177446000,-150.0,0.00013774,2]
[424809309,1781177446000,-150.0,0.00013795,2]
[424809299,1781177446000,-299.60307495,0.0001375,2]
[424809371,1781177447000,-500.0,0.00014008,2]
[424809369,1781177447000,-299.60307495,0.00014005,2]
[424809370,1781177447000,-150.0,0.00014006,2]
[424809366,1781177447000,-150.0,0.00013998,2]
[424809365,1781177447000,-299.60307495,0.0001399,2]
[424809364,1781177447000,-26574.84911613,0.0001399,2]
[424809363,1781177447000,-500.0,0.00013989,2]
[424809368,1781177447000,-150.0,0.00014005,2]
[424809372,1781177447000,-150.0,0.00014009,2]
[424809374,1781177447000,-150.0,0.00014027,2]
[424809375,1781177447000,-150.0,0.0001403,2]
[424809376,1781177447000,-150.0,0.00014031,2]
[424809373,1781177447000,-299.60307495,0.0001402,2]
[424809367,1781177447000,-250.0,0.00014,2]
[424809379,1781177447000,-150.0,0.00014042,2]
[424809377,1781177447000,-299.60307495,0.00014035,2]
[424809380,1781177447000,-299.60307495,0.0001405,2]
[424809387,1781177447000,-500.0,0.00014064,2]
[424809388,1781177447000,-500.0,0.00014064,2]
[424809381,1781177447000,-150.0,0.00014056,2]
[424809383,1781177447000,-500.0,0.00014064,2]
[424809378,1781177447000,-150.0,0.0001404,2]
[424809361,1781177447000,-500.0,0.00013989,2]
[424809351,1781177447000,-150.0,0.0001397,2]
[424809359,1781177447000,-500.0,0.00013989,2]
[424809385,1781177447000,-500.0,0.00014064,2]
[424809337,1781177447000,-299.60307495,0.00013915,2]
[424809339,1781177447000,-150.0,0.00013928,2]
[424809338,1781177447000,-150.0,0.00013916,2]
[424809341,1781177447000,-150.0,0.0001393,2]
[424809342,1781177447000,-299.60307495,0.0001393,2]
[424809343,1781177447000,-150.0,0.00013933,2]
[424809340,1781177447000,-150.0,0.0001393,2]
[424809344,1781177447000,-14297.61484587,0.00013935,2]
[424809345,1781177447000,-20540.24276242,0.00013936,2]
[424809362,1781177447000,-500.0,0.00013989,2]
[424809348,1781177447000,-150.0,0.00013953,2]
[424809347,1781177447000,-150.0,0.00013947,2]
[424809349,1781177447000,-299.60307495,0.0001396,2]
[424809355,1781177447000,-150.0,0.00013984,2]
[424809358,1781177447000,-617.58,0.00013989,2]
[424809352,1781177447000,-299.60307495,0.00013975,2]
[424809356,1781177447000,-473.88481406,0.00013989,2]
[424809353,1781177447000,-150.0,0.00013978,2]
[424809354,1781177447000,-150.0,0.00013979,2]
[424809357,1781177447000,-500.0,0.00013989,2]
[424809360,1781177447000,-500.0,0.00013989,2]
[424809346,1781177447000,-299.60307495,0.00013945,2]
[424809350,1781177447000,-150.0,0.00013964,2]
[424809386,1781177447000,-500.0,0.00014064,2]
[424809382,1781177447000,-500.0,0.00014064,2]
[424809420,1781177447000,-150.0,0.00014102,2]
[424809416,1781177447000,-299.60307495,0.0001408,2]
[424809417,1781177447000,-150.0,0.00014082,2]
[424809414,1781177447000,-150.0,0.00014071,2]
[424809415,1781177447000,-150.0,0.00014078,2]
[424809412,1781177447000,-150.0,0.00014065,2]
[424809422,1781177447000,-299.60307495,0.0001411,2]
[424809428,1781177447000,-150.0,0.00014133,2]
[424809426,1781177447000,-150.0,0.00014133,2]
[424809423,1781177447000,-150.0,0.00014115,2]
[424809418,1781177447000,-299.60307495,0.00014095,2]
[424809424,1781177447000,-299.60307495,0.00014125,2]
[424809425,1781177447000,-150.0,0.00014133,2]
[424809427,1781177447000,-150.0,0.00014133,2]
[424809430,1781177447000,-150.0,0.00014151,2]
[424809432,1781177447000,-150.0,0.00014159,2]
[424809431,1781177447000,-299.60307495,0.00014155,2]
[424809434,1781177447000,-150.0,0.00014167,2]
[424809435,1781177447000,-299.60307495,0.0001417,2]
[424809433,1781177447000,-150.0,0.00014164,2]
[424809436,1781177447000,-150.0,0.00014184,2]
[424809384,1781177447000,-500.0,0.00014064,2]
[424809429,1781177447000,-299.60307495,0.0001414,2]
[424809419,1781177447000,-150.0,0.00014099,2]
[424809421,1781177447000,-150.0,0.00014107,2]
[424809411,1781177447000,-150.0,0.00014065,2]
[424809413,1781177447000,-299.60307495,0.00014065,2]
[424809391,1781177447000,-500.0,0.00014064,2]
[424809394,1781177447000,-500.0,0.00014064,2]
[424809390,1781177447000,-500.0,0.00014064,2]
[424809393,1781177447000,-500.0,0.00014064,2]
[424809392,1781177447000,-500.0,0.00014064,2]
[424809395,1781177447000,-500.0,0.00014064,2]
[424809398,1781177447000,-500.0,0.00014064,2]
[424809397,1781177447000,-500.0,0.00014064,2]
[424809396,1781177447000,-500.0,0.00014064,2]
[424809399,1781177447000,-500.0,0.00014064,2]
[424809389,1781177447000,-500.0,0.00014064,2]
[424809401,1781177447000,-500.0,0.00014064,2]
[424809400,1781177447000,-500.0,0.00014064,2]
[424809408,1781177447000,-500.0,0.00014064,2]
[424809406,1781177447000,-500.0,0.00014064,2]
[424809407,1781177447000,-500.0,0.00014064,2]
[424809404,1781177447000,-500.0,0.00014064,2]
[424809410,1781177447000,-500.0,0.00014064,2]
[424809405,1781177447000,-500.0,0.00014064,2]
[424809402,1781177447000,-500.0,0.00014064,2]
[424809403,1781177447000,-500.0,0.00014064,2]
[424809409,1781177447000,-500.0,0.00014064,2]
[424809466,1781177448000,-299.60307495,0.00014306,2]
[424809471,1781177448000,-150.0,0.00014336,2]
[424809463,1781177448000,-299.60307495,0.00014291,2]
[424809469,1781177448000,-299.60307495,0.00014321,2]
[424809462,1781177448000,-150.0,0.00014288,2]
[424809464,1781177448000,-150.0,0.00014296,2]
[424809470,1781177448000,-150.0,0.00014332,2]
[424809467,1781177448000,-150.0,0.00014312,2]
[424809465,1781177448000,-150.0,0.00014302,2]
[424809468,1781177448000,-150.0,0.00014319,2]
[424809479,1781177448000,-150.0,0.00014369,2]
[424809477,1781177448000,-150.0,0.00014364,2]
[424809475,1781177448000,-150.0,0.0001435,2]
[424809480,1781177448000,-648.32862605,0.0001437,2]
[424809476,1781177448000,-299.60307495,0.00014351,2]
[424809474,1781177448000,-150.0,0.00014338,2]
[424809481,1781177448000,-150.0,0.0001437,2]
[424809485,1781177448000,-1555.5,0.00014382,2]
[424809482,1781177448000,-150.0,0.00014381,2]
[424809490,1781177448000,-500.0,0.00014407,2]
[424809472,1781177448000,-150.0,0.00014336,2]
[424809473,1781177448000,-299.60307495,0.00014336,2]
[424809459,1781177448000,-500.0,0.00014282,2]
[424809491,1781177448000,-500.0,0.00014407,2]
[424809458,1781177448000,-150.0,0.00014282,2]
[424809437,1781177448000,-299.60307495,0.00014185,2]
[424809438,1781177448000,-150.0,0.00014187,2]
[424809439,1781177448000,-150.0,0.00014195,2]
[424809441,1781177448000,-150.0,0.000142,2]
[424809442,1781177448000,-299.60307495,0.000142,2]
[424809444,1781177448000,-299.60307495,0.00014216,2]
[424809440,1781177448000,-150.0,0.000142,2]
[424809447,1781177448000,-299.60307495,0.00014231,2]
[424809445,1781177448000,-150.0,0.00014224,2]
[424809448,1781177448000,-150.0,0.00014234,2]
[424809460,1781177448000,-4108.632263,0.00014284,2]
[424809449,1781177448000,-150.0,0.00014235,2]
[424809446,1781177448000,-150.0,0.00014226,2]
[424809450,1781177448000,-150.0,0.00014239,2]
[424809454,1781177448000,-299.60307495,0.00014261,2]
[424809453,1781177448000,-150.0,0.0001426,2]
[424809452,1781177448000,-150.0,0.00014257,2]
[424809457,1781177448000,-299.60307495,0.00014276,2]
[424809451,1781177448000,-299.60307495,0.00014246,2]
[424809455,1781177448000,-150.0,0.00014261,2]
[424809456,1781177448000,-150.0,0.00014268,2]
[424809461,1781177448000,-150.0,0.00014287,2]
[424809443,1781177448000,-150.0,0.0001421,2]
[424809489,1781177448000,-150.0,0.00014405,2]
[424809478,1781177448000,-299.60307495,0.00014366,2]
[424809484,1781177448000,-150.0,0.00014381,2]
[424809515,1781177448000,-150.0,0.00014514,2]
[424809514,1781177448000,-150.0,0.00014505,2]
[424809521,1781177448000,-150.0,0.00014543,2]
[424809519,1781177448000,-150.0,0.00014536,2]
[424809522,1781177448000,-299.60307495,0.00014546,2]
[424809518,1781177448000,-299.60307495,0.00014531,2]
[424809520,1781177448000,-150.0,0.00014539,2]
[424809517,1781177448000,-150.0,0.00014518,2]
[424809523,1781177448000,-150.0,0.0001455,2]
[424809526,1781177448000,-150.0,0.00014567,2]
[424809516,1781177448000,-299.60307495,0.00014516,2]
[424809528,1781177448000,-150.0,0.00014572,2]
[424809527,1781177448000,-150.0,0.00014569,2]
[424809529,1781177448000,-299.60307495,0.00014576,2]
[424809524,1781177448000,-500.0,0.00014556,2]
[424809525,1781177448000,-299.60307495,0.00014561,2]
[424809531,1781177448000,-150.0,0.00014586,2]
[424809533,1781177448000,-150.0,0.00014595,2]
[424809535,1781177448000,-2100.0,0.000146,5]
[424809536,1781177448000,-150.0,0.00014606,2]
[424809537,1781177448000,-150.0,0.00014606,2]
[424809483,1781177448000,-299.60307495,0.00014381,2]
[424809530,1781177448000,-150.0,0.00014579,2]
[424809513,1781177448000,-150.0,0.00014505,2]
[424809532,1781177448000,-299.60307495,0.00014591,2]
[424809509,1781177448000,-150.0,0.00014478,2]
[424809507,1781177448000,-299.60307495,0.00014471,2]
[424809486,1781177448000,-150.0,0.00014389,2]
[424809488,1781177448000,-150.0,0.00014403,2]
[424809494,1781177448000,-150.0,0.00014412,2]
[424809492,1781177448000,-1600.0,0.00014407,2]
[424809493,1781177448000,-299.60307495,0.00014411,2]
[424809496,1781177448000,-299.60307495,0.00014426,2]
[424809534,1781177448000,-150.0,0.00014598,2]
[424809501,1781177448000,-150.0,0.00014443,2]
[424809498,1781177448000,-150.0,0.00014441,2]
[424809497,1781177448000,-150.0,0.00014437,2]
[424809495,1781177448000,-150.0,0.00014415,2]
[424809487,1781177448000,-299.60307495,0.00014396,2]
[424809500,1781177448000,-150.0,0.00014441,2]
[424809499,1781177448000,-299.60307495,0.00014441,2]
[424809504,1781177448000,-150.0,0.00014466,2]
[424809505,1781177448000,-150.0,0.00014471,2]
[424809503,1781177448000,-299.60307495,0.00014456,2]
[424809506,1781177448000,-150.0,0.00014471,2]
[424809508,1781177448000,-150.0,0.00014474,2]
[424809511,1781177448000,-150.0,0.00014492,2]
[424809510,1781177448000,-299.60307495,0.00014486,2]
[424809512,1781177448000,-299.60307495,0.00014501,2]
[424809502,1781177448000,-150.0,0.00014452,2]
[424809565,1781177449000,-299.60307495,0.00014696,2]
[424809574,1781177449000,-150.0,0.00014741,2]
[424809572,1781177449000,-299.60307495,0.00014726,2]
[424809571,1781177449000,-150.0,0.00014723,2]
[424809570,1781177449000,-150.0,0.00014722,2]
[424809563,1781177449000,-150.0,0.00014691,2]
[424809569,1781177449000,-299.60307495,0.00014711,2]
[424809567,1781177449000,-2100.0,0.000147,5]
[424809566,1781177449000,-150.0,0.00014697,2]
[424809573,1781177449000,-150.0,0.00014732,2]
[424809568,1781177449000,-150.0,0.00014708,2]
[424809575,1781177449000,-150.0,0.00014741,2]
[424809579,1781177449000,-500.0,0.00014755,2]
[424809576,1781177449000,-299.60307495,0.00014741,2]
[424809577,1781177449000,-150.0,0.00014748,2]
[424809581,1781177449000,-500.0,0.00014755,2]
[424809585,1781177449000,-376.40470211,0.00014755,2]
[424809584,1781177449000,-500.0,0.00014755,2]
[424809578,1781177449000,-150.0,0.00014753,2]
[424809580,1781177449000,-500.0,0.00014755,2]